Cogmind - Beta 13 @@@ ROGUE MODE // 2024.04.19 @ 19:42:10 Player: monkeman Result: Destroyed by IV-RDF(R) with Subdweller Laser Performance ------------- Evolutions (0) 0 Regions Visited (2) 400 Robots Destroyed (28) 140 Value Destroyed (752) 752 Prototype IDs (6) 120 Alien Tech Used (0) 0 Bonus (0) 0 TOTAL SCORE: 1412 Bonus ------- None Cogmind --------- Core Integrity 0/250 Matter 258/300 Energy 200/200 System Corruption 0% Temperature Cool (6) Movement Treading (240) Ox1 Location -10/Subcaves Parts ------- > --- POWER (1) -------- Subdweller Power Source > --- PROPULSION (2) --- Improved Treads Subdweller Monowheel > --- UTILITY (2) ------ Large Storage Unit Improved Targeting Computer > --- WEAPON (2) ------- Subdweller Machine Gun Barrage Gun > --- INVENTORY (15) --- Light Ion Engine Improved Treads Improved Treads Aluminum Leg Subdweller Monowheel Signal Interpreter Seismic Detector Riot Gun Particle Gun Makeshift Laser Makeshift Laser Subdweller Beam Cannon Battle Cannon Mace Peak State ------------ > --- POWER ------------ Subdweller Power Source > --- PROPULSION ------- Improved Treads Subdweller Monowheel > --- UTILITY ---------- Large Storage Unit Improved Targeting Computer > --- WEAPON ----------- Subdweller Machine Gun Barrage Gun > --- INVENTORY -------- Light Ion Engine Improved Treads Improved Treads Improved Treads Aluminum Leg Subdweller Monowheel Signal Interpreter Seismic Detector Riot Gun Particle Gun Makeshift Laser Makeshift Laser Subdweller Beam Cannon Battle Cannon Mace [Rating: 17] Favorites ----------- Power Light Ion Engine Engine Light Ion Engine Propulsion Compact Wheel Treads Improved Treads Leg Aluminum Leg Wheel Compact Wheel Utility Large Storage Unit Device Heat Sink Storage Large Storage Unit Processor Improved Targeting Computer Protection Light Armor Plating Weapon Medium Laser Energy Gun Medium Laser Ballistic Gun Subdweller Machine Gun Ballistic Cannon Light Cannon Special Weapon Welding Torch Impact Weapon Mace Build | -11 -10 -10 ------- Run | Yrd Mat Sub Slots Evolved . | . . . Power . | . . . Propulsion . | . . . Utility . | . . . Weapon . | . . . Parts Attached 36 | 6 17 13 Power 5 | 1 1 3 Engine 5 | 1 1 3 Core . | . . . Reactor . | . . . Propulsion 9 | 2 5 2 Treads 4 | . 3 1 Leg 2 | 2 . . Wheel 3 | . 2 1 Hover . | . . . Flight . | . . . Utility 9 | 1 5 3 Device 1 | . 1 . Storage 3 | 1 2 . Processor 1 | . . 1 Hackware . | . . . Protection 4 | . 2 2 Artifact . | . . . Weapon 13 | 2 6 5 Energy Gun 3 | 1 1 1 Energy Cannon . | . . . Ballistic Gun 6 | 1 2 3 Ballistic Cannon 1 | . 1 . Launcher . | . . . Special Weapon 1 | . 1 . Impact Weapon 2 | . 1 1 Slashing Weapon . | . . . Piercing Weapon . | . . . Special Melee Weapon . | . . . Unidentified Prototypes . | . . . Parts Lost 12 | . 4 8 Power 3 | . 1 2 Propulsion 4 | . 3 1 Utility 3 | . . 3 Weapon 2 | . . 2 Highest Loss Streak 3 | . 3 3 To Critical Strikes . | . . . Average Slot Usage (%) 96 | . 96 97 Engine 12 | . 13 11 Treads 13 | . 12 14 Leg 1 | . 3 . Wheel 12 | . 11 14 Storage 14 | . 14 14 Protection 11 | . 11 11 Energy Gun 8 | . 13 1 Ballistic Gun 14 | . 11 18 Ballistic Cannon 2 | . . 6 Special Weapon 1 | . 2 . Naked Turns . | . . . Heaviest Build 35 | 11 31 35 Greatest Support 40 | 20 40 23 Greatest Overweight (x) 2 | . 1 2 Average Overweight (x) 1 | . . 1 Largest Inventory Capacity 15 | 8 15 15 Average Capacity 14 | 6 13 15 Most Carried 15 | 6 15 15 Average Carried 13 | 4 12 14 Final Capacity 15 | 8 15 15 Final Carried 15 | 6 15 14 Class Distribution -------------------- 100% | Mutant Dominant Class ---------------- Mutant | -10/Materials Mutant | -10/Subcaves Resources | -11 -10 -10 ----------- Run | Yrd Mat Sub Matter Collected 819 | 148 370 301 Remotely . | . . . Salvage Created 804 | . 631 173 Parts 61 | . 54 7 Haulers Intercepted 1 | . 1 . Recyclers Shooed . | . . . Parts Field Recycled . | . . . Retrieved Matter . | . . . Parts Self-Destructed 4 | . . 4 Prevented . | . . . Kills | -11 -10 -10 ------- Run | Yrd Mat Sub Combat Hostiles Destroyed 22 | . 16 6 Guns 20 | . 16 4 Cannons 2 | . . 2 Classes Destroyed 6 | . 5 1 Hauler 1 | . 1 . Operator 2 | . 2 . Watcher 3 | . 3 . Swarmer 6 | . 6 . Grunt 11 | . 10 1 Subdweller 5 | . . 5 Best Kill Streak 5 | . 5 1 Combat Bots Only 5 | . 5 1 Max Kills in Single Turn 1 | . 1 1 Gunslinging . | . . . Exploded . | . . . Melee . | . . . Uniques/NPCs Destroyed . | . . . Combat | -11 -10 -10 -------- Run | Yrd Mat Sub Hostile Shots Fired 151 | . 95 56 Missed 38 | . 24 14 Damage Taken 1590 | . 727 863 Core 262 | . 165 97 Absorbed by Shields . | . . . Core Remaining (%) 100 | 100 . . Volleys Fired 113 | . 74 39 Largest 2 | . 2 2 Hottest 100 | . 70 100 Shots Fired 223 | . 145 78 Gun 190 | . 142 48 Cannon 30 | . . 30 Launcher . | . . . Special 3 | . 3 . Kinetic 143 | . 71 72 Thermal 80 | . 74 6 Explosive . | . . . Electromagnetic . | . . . Robot Hit Streak 12 | . 11 12 Robot Miss Streak 6 | . 6 3 Penetration Max . | . . . Secondary Targets 4 | . 4 . Max Gunslinging Chain 1 | . 1 . Shots Hit Robots 139 | . 84 55 Core Hits 50 | . 38 12 Critical Kills . | . . . Critical Parts Destroyed 2 | . 2 . Critical Strikes 6 | . 5 1 Burn 3 | . 3 . Destroy 2 | . 2 . Blast 1 | . . 1 Melee Attacks 4 | . . 4 Impact 4 | . . 4 Slashing . | . . . Piercing . | . . . Sneak Attacks . | . . . Combat Hostiles . | . . . Follow-up Attacks . | . . . Damage Inflicted 1847 | . 973 874 Guns 1523 | . 973 550 Cannons 324 | . . 324 Explosions . | . . . Melee . | . . . Ramming . | . . . Kinetic 1197 | . 382 815 Thermal 650 | . 591 59 Explosive . | . . . Electromagnetic . | . . . Impact . | . . . Slashing . | . . . Piercing . | . . . Highest Corruption . | . . . Average Corruption . | . . . Corruption Purged . | . . . Corruption Blocked . | . . . Overload Shots . | . . . Overflow Damage 4 | . . 4 Projectiles 4 | . . 4 Explosions . | . . . Melee . | . . . Knockbacks 10 | . . 10 Impact . | . . . Kinetic 10 | . . 10 Secondary . | . . . Self-Inflicted Damage . | . . . Shots . | . . . Rammed . | . . . Targets Rammed . | . . . Kicked . | . . . Crushed . | . . . Highest Temperature 222 | . 222 . Average Temperature 65 | . 65 . Received Heat Transfer 468 | . 297 171 Siege Activations . | . . . Robots Corrupted . | . . . Combat Hostiles . | . . . Parts Fried . | . . . Impact Corruptions . | . . . Robots Melted . | . . . Combat Hostiles . | . . . Parts Melted 4 | . 4 . Heat Transferred 2109 | . 1961 148 Parts Sabotaged . | . . . Parts Stolen . | . . . Parts Stripped . | . . . Power Chain Reactions . | . . . Alert | -11 -10 -10 ------- Run | Yrd Mat Sub Peak Influence 407 | . 407 . Initial . | . . . Average 164 | . 170 . Maximum Alert Level 2 | . 2 . Low Security (%) 55 | 100 53 . Level 1 40 | . 41 . Level 2 4 | . 4 . Level 3 . | . . . Level 4 . | . . . Level 5 . | . . . High Security . | . . . Max Security . | . . . Squads Dispatched 3 | . 3 . Investigation 2 | . 2 . Extermination . | . . . Reinforcement 1 | . 1 . Assault . | . . . Garrison . | . . . Intercept . | . . . Searches Triggered . | . . . Construction Impeded . | . . . Haulers Reinforced . | . . . Active Scanning Responses . | . . . Cargo Convoy Interrupts . | . . . Stealth | -11 -10 -10 --------- Run | Yrd Mat Sub Distress Signals 2 | . 2 . Communications Jammed . | . . . Distress Signals . | . . . Times Spotted 37 | . 30 7 Peak Tracking Total 5 | . 5 1 Tactical Retreats 1 | . 1 . Traps | -11 -10 -10 ------- Run | Yrd Mat Sub Traps Triggered 2 | . 2 . Indirectly . | . . . Trap Hack Attempts . | . . . Triggered . | . . . Disarmed . | . . . Reprogrammed . | . . . Reused . | . . . Traps Extracted . | . . . Installed . | . . . Triggered . | . . . Machines | -11 -10 -10 ---------- Run | Yrd Mat Sub Machines Disabled 1 | . 1 . Max in Single Turn 1 | . 1 . Machines Repaired . | . . . Machines Dismantled . | . . . Machines Sabotaged . | . . . Overloaded Fab Kills . | . . . Hacking | -11 -10 -10 --------- Run | Yrd Mat Sub Machines Accessed 8 | . 7 1 Terminals 6 | . 6 . Fabricators . | . . . Repair Stations . | . . . Recycling Units 1 | . 1 . Scanalyzers . | . . . Garrison Access . | . . . Total Hacks 23 | . 20 3 Successful 13 | . 10 3 Failed 10 | . 10 . Catastrophic 3 | . 3 . Database Lockouts . | . . . Manual 9 | . 9 . Terminals 19 | . 19 . Fabricators . | . . . Repair Stations . | . . . Recycling Units 1 | . 1 . Scanalyzers . | . . . Garrison Access . | . . . Terminal Hacks 10 | . 7 3 Record 3 | . . 3 Robot Analysis 1 | . 1 . Prototype ID Bank 4 | . 4 . Hauler Manifests 1 | . 1 . Zone Layout 1 | . 1 . Fabricator Hacks . | . . . Repair Station Hacks . | . . . Recycling Unit Hacks 1 | . 1 . Report Inventory 1 | . 1 . Scanalyzer . | . . . Garrison Access Hacks . | . . . Unauthorized Hacks 2 | . 2 . Terminals 2 | . 2 . Botnet 2 | . 2 . Fabricators . | . . . Repair Stations . | . . . Recycling Units . | . . . Scanalyzers . | . . . Garrison Access . | . . . Data Cores Recovered . | . . . Used . | . . . Hacking Detections 5 | . 5 . Full Trace Events 1 | . 1 . Feedback Events . | . . . Feedback Blocked . | . . . Robot Schematics Acquired . | . . . Robots Built . | . . . Authchips . | . . . Time . | . . . Total Robot Build Rating . | . . . Part Schematics Acquired . | . . . Parts Built . | . . . Authchips . | . . . Time . | . . . Total Part Build Rating . | . . . Parts Repaired . | . . . Time . | . . . Parts Recycled . | . . . Recycled Matter . | . . . Retrieved Matter . | . . . Retrieved Components . | . . . Parts Scanalyzed . | . . . Part Schematics Acquired . | . . . Parts Damaged . | . . . Bothacking | -11 -10 -10 ------------ Run | Yrd Mat Sub Used RIF Installer . | . . . Robots Hacked . | . . . Non-combat . | . . . Combat . | . . . Robot Hacks Applied . | . . . Relay Couplers Released . | . . . Fabnet Peak Effective % . | . . . Robots Rewired . | . . . Allies Hacked . | . . . Hacks Repelled . | . . . Allies | -11 -10 -10 -------- Run | Yrd Mat Sub Total Allies . | . . . Largest Group . | . . . Highest-Rated Group . | . . . Highest-Rated Ally . | . . . Total Orders . | . . . Ally Attacks . | . . . Total Damage . | . . . Kills . | . . . Allies Corrupted . | . . . Allies Melted . | . . . Intel | -11 -10 -10 ------- Run | Yrd Mat Sub Robot Analysis Total 1 | . 1 . Derelict Logs Recovered 1 | . . 1 Drone Launches . | . . . Drone Recoveries . | . . . Exploration | -11 -10 -10 ------------- Run | Yrd Mat Sub Turns Passed 3160 | 62 1639 1459 Spaces Moved 1726 | 46 799 881 Core 10 | 10 . . Treads 340 | . 235 105 Legs 126 | 36 90 . Wheels 1250 | . 474 776 Hover . | . . . Flight . | . . . Fastest Speed 50 | 50 100 115 Average Speed 143 | 104 149 139 Slowest Speed 240 | 120 240 240 Overloaded Moves . | . . . Propulsion Burnouts . | . . . Robots Hopped . | . . . Cave-ins Triggered . | . . . Exploration Rate (%) 52 | 4 93 61 Regions Visited 2 Branch Regions 1 Pre-discovered Areas . | . . . Known Exits Taken . | . . . Unknown Exits Taken 2 | 1 1 . Scrap Searched . | . . . Spaces Dug . | . . . Terrain Destroyed . | . . . Melee . | . . . Projectile . | . . . AOE . | . . . Terrain Rammed . | . . . Walls Destroyed . | . . . Machines Disabled . | . . . Actions | -11 -10 -10 --------- Run | Yrd Mat Sub Total 2193 | 57 1109 1027 Wait 264 | . 190 74 Move 1724 | 45 798 881 Hop . | . . . Pick Up 35 | 6 19 10 Fast Attach 14 | 6 6 2 Attach 11 | . 4 7 Detach . | . . . Swap 11 | . 7 4 Drop 17 | . 11 6 Fire 113 | . 74 39 Melee 4 | . . 4 Ram . | . . . Kick . | . . . Crush . | . . . Escape Stasis . | . . . Rewire . | . . . Trap . | . . . Miscellaneous . | . . . Route ------- -11/Scrapyard -10/Materials (discovered 5 exits: [*Mat x3] / [*Min] / *Sub) -10/Subcaves (discovered 2 exits: [*Mat x2]) History --------- Turn | Location | Event 5 | -11/Scrapyard | Discovered new exit (range 14) 63 | -11/Scrapyard | Entered Materials 304 | -10/Materials | Lost 3 parts (1p2n) 330 | -10/Materials | Build established: Mutant 363 | -10/Materials | Core integrity fell below 50% 705 | -10/Materials | Discovered new exit (range 15) 771 | -10/Materials | Discovered new exit (range 15) 1203 | -10/Materials | Discovered new exit (range 11) 1279 | -10/Materials | Discovered new exit (range 9) 1687 | -10/Materials | Discovered new exit (range 14) 1702 | -10/Materials | Entered Subcaves 1781 | -10/Subcaves | Discovered new exit (range 15) 1885 | -10/Subcaves | Lost 3 parts (1p1u1w) 1920 | -10/Subcaves | Core integrity fell below 20% 2041 | -10/Subcaves | Lost 3 parts (1p1u1w) 2104 | -10/Subcaves | Shifting Twisted Machinery released Shrapnel Trap 2112 | -10/Subcaves | A swath of the cavern ceiling suddenly collapsed 2357 | -10/Subcaves | Shifting Twisted Machinery released Battle Cannon 2570 | -10/Subcaves | Discovered new exit (range 7) 2790 | -10/Subcaves | Visited Clippyterm 3117 | -10/Subcaves | A swath of the cavern ceiling suddenly collapsed 3161 | -10/Subcaves | Destroyed by IV-RDF(R) with Subdweller Laser Last Messages --------------- >>Record! "01-MTF" It looks like you're after the notorious thief from 0b1. I don't know where they are, but my data indicates that someone they're looking for is frequently seen in Scraptown. 02821_ Acquired Mak. Laser. 02916_ Lgt. Armor Plating destroyed. 02924_ DS-VI7(R) destroyed. 02927_ Acquired 42 matter. 02932_ Subatomizers dissect the Sub. Monowheel. 02934_ Dropped Com. Wheel. 02934_ Acquired Sub. Monowheel. 02987_ 9U-I4I(R) destroyed. 02993_ Acquired Sub. Beam Cannon. 02994_ Acquired 43 matter. 03005_ Subatomizers dissect the Disposable Heat Sink. A swath of the cavern ceiling suddenly collapses. 03143_ Imp. Treads destroyed. Map ----- +----------------------------------------------------+ | ???# ### #???????????????????????????????????? | | ??# ## ##??????????????????????????????????? | | ??# ## ## #########??????????????????????????? | | ? #?# ## ##?????????????????????????? | | ??# ### #?????????????????????????? | | ??## #### ##????????????????????????? | | #?## ### #????????????????????????? | | ### ## #????????????????????????? | | ##????????????????????????? | | ## ###?????????????????????????? | | " ### ##???????????????????????????? | | ## ##### #####????????????????????????????? | | ## ##???## ##?????????????????????????????? | | """ ######## #?????????????????????????????? | | ### ### #?????????????????????????????? | | ## ## ##?????????????????????????????? | | ## ## ####??????????????????????????????? | | # ## ######?####????????###???????????????? | | # # ### ##?# ### ##?????? ##??????????????? | | # # ## ### ###???? ### ??????????? | | ###### #??? ??????????? | | #????# #?????? ???????????? | | ##?????# #????? #?????????????? | | ??????# ## ##???#R #???????????????? | | ??????# #### #### #????????????????? | | ??????# #??# @ #????????????????? | | ??????# #??##### ##????????????????? | | ??????# ## ??????## #?????????????????? | | ??????##?###???????#### #?????????????????? | | ??????????????????????# #?????????????????? | | ??????????????????????# #?????????????????? | | ??????????????????????## #????????????????? | | ???????????????????????# #????????????????? | | ??????????????????????? #???????????????? | | ??????????????????????? ??????????????? | | ??????????????????????? ?????????????? | | ???????????????????????##### ?????????????? | | ????????????????????????????########?????????????? | | ?????????????????????????????????????????????????? | | ?????????????????????????????????????????????????? | | ?????????????????????????????????????????????????? | | ?????????????????????????????????????????????????? | | ?????????????????????????????????????????????????? | | ?????????????????????????????????????????????????? | | ?????????????????????????????????????????????????? | | ?????????????????????????????????????????????????? | | ?????????????????????????????????????????????????? | | ?????????????????????????????????????????????????? | | ?????????????????????????????????????????????????? | | ?????????????????????????????????????????????????? | +----------------------------------------------------+ Best States ------------- Heat Dissipation 35 Energy Generation 15 Energy Capacity 200 Matter Stores 300 Matter Capacity 300 Sight Range 16 Terrain Scan Density 10 Armor Coverage 150 Evasion (%) 55 Targeting Accuracy 6 Recoil Reduction 1 Item Schematics ----------------- None Robot Schematics ------------------ None Fabricated ------------ Nothing Alien Tech Used ----------------- None Achievements -------------- None Challenges ------------ None Game ------ Seed AblativeVisualFlail Manual? 0 Play Time 00:16:53 Cumulative 38.2 hours Start 2024.04.19 @ 19:27:05 End 2024.04.19 @ 19:42:10 Sessions 1 Manual Loads 0 Difficulty Rogue Special Mode None Game No. 49 Rogue 49 Adventurer 0 Explorer 0 Win Type - Total 1 Types 1/0/0/0/0/0/0/0/0 Lore% 26 Gallery% 39 Achievement% 30 Wizard Run 0 Options --------- Layout 1 ASCII 0 Keyboard 0 Movement Mouse Keybinds 0 Fullscreen 1 Font 24/Smallcaps Map View 50x35 Zoom Use 0% Tactical HUD 1 Map Filters NONE Filters NONE Steam 1 RUN: 48e17864-1a9f-41ff-8f21-bd98438f4f94